fUSD/lending_fUSD_20241202
["ID","MTS","AMOUNT","RATE_DAILY","PERIOD"]
[343972170,1733163596936,2910.34,0.00025,120]
[343972171,1733163596994,2957.97,0.00025,120]
[343972172,1733163597056,3913.2,0.00025,120]
[343972173,1733163597176,500.0,0.00025,120]
[343972174,1733163597784,7178.43,0.00025,120]
[343972175,1733163597927,2689.37,0.00025,120]
[343972176,1733163598438,3629.14,0.00025,120]
[343972177,1733163598673,3071.12,0.00025,120]
[343972178,1733163598981,500.0,0.00025,120]
[343972179,1733163599247,500.0,0.00025,120]
[343972180,1733163599648,294.0073564,0.00025,120]
[343972181,1733163599786,500.0,0.00025,120]
[343972182,1733163600686,9067.68,0.00025,120]
[343972183,1733163601586,9624.38,0.00025,120]
[343972184,1733163602052,862.18,0.00025,120]
[343972185,1733163605048,500.0,0.00025,120]
[343972186,1733163605219,6437.9,0.00025,120]
[343972187,1733163605355,500.0,0.00025,120]
[343972188,1733163605444,2922.07,0.00025,120]
[343972189,1733163607950,2464.68,0.00025,120]
[343972190,1733163608105,4379.17,0.00025,120]
[343972191,1733163609203,1810.18,0.00025,120]
[343972192,1733163609273,500.0,0.00025,120]
[343972193,1733163609882,822.2,0.00025,120]
[343972194,1733163610014,524.76,0.00025,120]
[343972195,1733163610194,500.0,0.00025,120]
[343972196,1733163610859,3087.89,0.00025,120]
[343972197,1733163611354,500.0,0.00025,120]
[343972198,1733163611428,500.0,0.00025,120]
[343972199,1733163612265,500.0,0.00025,120]
[343972200,1733163612347,4743.95,0.00025,120]
[343972201,1733163612429,2597.06,0.00025,120]
[343972202,1733163613147,16817.03,0.00025,120]
[343972203,1733163613439,7724.58,0.00025,120]
[343972204,1733163613926,500.0,0.00025,120]
[343972205,1733163614827,500.0,0.00025,120]
[343972206,1733163615192,2209.97,0.00025,120]
[343972207,1733163616242,9167.59,0.00025,120]
[343972208,1733163616476,2028.98,0.00025,120]
[343972209,1733163617576,500.0,0.00025,120]
[343972210,1733163619418,502.79,0.00025,120]
[343972211,1733163619519,500.0,0.00025,120]
[343972212,1733163619933,500.0,0.00025,120]
[343972213,1733163620274,758.68,0.00025,120]
[343972214,1733163620816,1444.05,0.00025,120]
[343972215,1733163621598,500.0,0.00025,120]
[343972216,1733163621666,1710.81,0.00025,120]
[343972217,1733163621804,500.0,0.00025,120]
[343972218,1733163621879,553.05,0.00025,120]
[343972219,1733163621948,500.0,0.00025,120]
[343972220,1733163622792,500.0,0.00025,120]
[343972221,1733163623617,6155.78,0.00025,120]
[343972222,1733163624062,1662.59,0.00025,120]
[343972223,1733163624200,500.0,0.00025,120]
[343972224,1733163624567,2618.46,0.00025,120]
[343972225,1733163625188,500.0,0.00025,120]
[343972226,1733163625484,856.12,0.00025,120]
[343972227,1733163625967,2623.56,0.00025,120]
[343972228,1733163626052,500.0,0.00025,120]
[343972229,1733163627384,6996.51,0.00025,120]
[343972230,1733163628017,3678.29,0.00025,120]
[343972231,1733163630075,500.0,0.00025,120]
[343972232,1733163630315,2064.7,0.00025,120]
[343972233,1733163630511,500.0,0.00025,120]
[343972234,1733163630620,500.0,0.00025,120]
[343972235,1733163630815,500.0,0.00025,120]
[343972236,1733163631027,500.0,0.00025,120]
[343972237,1733163631151,500.0,0.00025,120]
[343972238,1733163631421,500.0,0.00025,120]
[343972239,1733163633989,500.0,0.00025,120]
[343972240,1733163634187,526.83,0.00025,120]
[343972241,1733163634282,500.0,0.00025,120]
[343972242,1733163634373,500.0,0.00025,120]
[343972243,1733163634674,500.0,0.00025,120]
[343972244,1733163635032,500.71,0.00025,120]
[343972245,1733163635444,500.0,0.00025,120]
[343972246,1733163635572,500.0,0.00025,120]
[343972247,1733163636084,500.0,0.00025,120]
[343972248,1733163636579,500.0,0.00025,120]
[343972249,1733163636852,500.0,0.00025,120]
[343972250,1733163637253,500.0,0.00025,120]
[343972251,1733163637466,587.45,0.00025,120]
[343972252,1733163637611,500.0,0.00025,120]
[343972253,1733163637702,4398.6,0.00025,120]
[343972254,1733163638144,500.0,0.00025,120]
[343972255,1733163638360,819.94,0.00025,120]
[343972256,1733163638422,5981.13,0.00025,120]
[343972257,1733163638482,1251.07,0.00025,120]
[343972258,1733163638548,1241.39,0.00025,120]
[343972259,1733163639611,1267.07,0.00025,120]
[343972260,1733163640944,500.0,0.00025,120]
[343972261,1733163641404,1363.31,0.00025,120]
[343972262,1733163641546,895.29,0.00025,120]
[343972263,1733163641611,500.0,0.00025,120]
[343972264,1733163641879,500.0,0.00025,120]
[343972265,1733163642215,501.47,0.00025,120]
[343972266,1733163642362,512.88,0.00025,120]
[343972267,1733163642440,500.0,0.00025,120]
[343972268,1733163643391,2452.68,0.00025,120]
[343972269,1733163643809,4668.8,0.00025,120]
[343972270,1733163644547,500.0,0.00025,120]
[343972271,1733163644771,11392.2,0.00025,120]
[343972272,1733163645246,24585.98,0.00025,120]
[343972273,1733163646021,500.0,0.00025,120]
[343972274,1733163646221,1263.08,0.00025,120]
[343972275,1733163646323,500.0,0.00025,120]
[343972276,1733163646413,500.0,0.00025,120]
[343972277,1733163647971,500.0,0.00025,120]
[343972278,1733163648533,500.0,0.00025,120]
[343972279,1733163648848,500.0,0.00025,120]
[343972280,1733163649261,2900.51,0.00025,120]
[343972281,1733163649844,500.0,0.00025,120]
[343972282,1733163649993,1402.5,0.00025,120]
[343972283,1733163650083,160.89571662,0.00025,120]
[343972284,1733163650538,30856.16,0.00025,120]
[343972285,1733163650823,16138.26,0.00025,120]
[343972286,1733163650891,500.0,0.00025,120]
[343972287,1733163652255,500.0,0.00025,120]
[343972288,1733163652430,603.58,0.00025,120]
[343972289,1733163652587,500.0,0.00025,120]
[343972290,1733163653281,3482.64,0.00025,120]
[343972291,1733163653510,500.0,0.00025,120]
[343972292,1733163653934,759.62,0.00025,120]
[343972293,1733163654131,1214.19,0.00025,120]
[343972294,1733163654248,528.69,0.00025,120]
[343972295,1733163655378,700.0,0.00025,120]
[343972296,1733163655507,2661.17,0.00025,120]
[343972297,1733163655613,500.0,0.00025,120]
[343972298,1733163655964,500.0,0.00025,120]
[343972299,1733163656050,16797.52,0.00025,120]
[343972300,1733163656192,1437.41,0.00025,120]
[343972301,1733163658392,500.0,0.00025,120]
[343972302,1733163658476,500.0,0.00025,120]
[343972303,1733163658662,1180.91,0.00025,120]
[343972304,1733163658889,500.0,0.00025,120]
[343972305,1733163659793,2828.76,0.00025,120]
[343972306,1733163660572,500.0,0.00025,120]
[343972307,1733163660844,2364.3,0.00025,120]
[343972308,1733163661117,2371.51,0.00025,120]
[343972309,1733163663385,1687.08,0.00025,120]
[343972310,1733163663468,1557.88,0.00025,120]
[343972311,1733163663669,503.66410376,0.00025,120]
[343972312,1733163664152,500.0,0.00025,120]
[343972313,1733163664461,337.11529892,0.00025,120]
[343972314,1733163664630,500.0,0.00025,120]
[343972315,1733163665267,36545.46,0.00025,120]
[343972316,1733163665580,500.0,0.00025,120]
[343972317,1733163666636,500.0,0.00025,120]
[343972318,1733163666878,500.0,0.00025,120]
[343972319,1733163667295,6542.51,0.00025,120]
[343972320,1733163667526,616.08,0.00025,120]
[343972321,1733163668167,1306.23,0.00025,120]
[343972322,1733163668230,500.0,0.00025,120]
[343972323,1733163668316,1339.9,0.00025,120]
[343972324,1733163668475,3127.96,0.00025,120]
[343972325,1733163668596,1578.57,0.00025,120]
[343972326,1733163668852,371.15329684,0.00025,120]
[343972327,1733163668929,841.33,0.00025,120]
[343972328,1733163669896,3058.55,0.00025,120]
[343972329,1733163670543,5076.55,0.00025,120]
[343972330,1733163670674,745.93,0.00025,120]
[343972331,1733163671270,517.09582492,0.00025,120]
[343972332,1733163672622,500.0,0.00025,120]
[343972333,1733163673942,4562.2,0.00025,120]
[343972334,1733163674057,500.0,0.00025,120]
[343972335,1733163674854,500.0,0.00025,120]
[343972336,1733163675233,10033.51,0.00025,120]
[343972337,1733163675395,500.0,0.00025,120]
[343972338,1733163676984,932.13,0.00025,120]
[343972339,1733163677234,500.0,0.00025,120]
[343972340,1733163677987,1160.16,0.00025,120]
[343972341,1733163678053,574.8,0.00025,120]
[343972342,1733163678232,1003.51,0.00025,120]
[343972343,1733163678462,6897.7,0.00025,120]
[343972344,1733163678544,1163.74,0.00025,120]
[343972345,1733163678636,666.84,0.00025,120]
[343972346,1733163678727,1725.59,0.00025,120]
[343972347,1733163679263,500.0,0.00025,120]
[343972348,1733163679598,2240.68,0.00025,120]
[343972349,1733163679664,2342.66,0.00025,120]
[343972350,1733163680473,500.0,0.00025,120]
[343972351,1733163680858,581.16,0.00025,120]
[343972352,1733163682398,500.0,0.00025,120]
[343972353,1733163682931,5343.66,0.00025,120]
[343972354,1733163684897,500.0,0.00025,120]
[343972355,1733163684980,842.3,0.00025,120]
[343972356,1733163685334,40929.02,0.00025,120]
[343972357,1733163687249,3606.77,0.00025,120]
[343972358,1733163687840,2518.99,0.00025,120]
[343972359,1733163687971,500.0,0.00025,120]
[343972360,1733163688424,7052.58,0.00025,120]
[343972361,1733163688872,624.65,0.00025,120]
[343972362,1733163690103,4518.46,0.00025,120]
[343972363,1733163690411,2942.74,0.00025,120]
[343972364,1733163690535,500.0,0.00025,120]
[343972365,1733163690630,500.0,0.00025,120]
[343972366,1733163690731,500.0,0.00025,120]
[343972367,1733163691810,500.0,0.00025,120]
[343972368,1733163692303,500.0,0.00025,120]
[343972369,1733163692571,500.0,0.00025,120]
[343972370,1733163692674,991.76,0.00025,120]
[343972371,1733163692976,500.0,0.00025,120]
[343972372,1733163693127,2727.06,0.00025,120]
[343972373,1733163694131,5103.4,0.00025,120]
[343972374,1733163694219,500.0,0.00025,120]
[343972375,1733163694430,2345.22,0.00025,120]
[343972376,1733163694494,3250.0,0.00025,120]
[343972377,1733163697017,500.0,0.00025,120]
[343972378,1733163697975,834.59,0.00025,120]
[343972379,1733163698100,752.76,0.00025,120]
[343972380,1733163698162,846.95,0.00025,120]
[343972381,1733163698427,3809.82,0.00025,120]
[343972382,1733163700375,5897.29,0.00025,120]
[343972383,1733163700678,500.0,0.00025,120]
[343972384,1733163701277,3262.06,0.00025,120]
[343972385,1733163701470,4302.64,0.00025,120]
[343972386,1733163701722,6940.75,0.00025,120]
[343972387,1733163702141,3891.1,0.00025,120]
[343972388,1733163702691,504.45937783,0.00025,120]
[343972389,1733163702855,500.0,0.00025,120]
[343972390,1733163702930,500.0,0.00025,120]
[343972391,1733163703291,539.36,0.00025,120]
[343972392,1733163704111,2181.04,0.00025,120]
[343972393,1733163704222,500.0,0.00025,120]
[343972394,1733163704288,713.92,0.00025,120]
[343972395,1733163704435,500.0,0.00025,120]
[343972396,1733163704507,500.0,0.00025,120]
[343972397,1733163705136,500.0,0.00025,120]
[343972398,1733163707833,500.0,0.00025,120]
[343972399,1733163707941,500.0,0.00025,120]
[343972400,1733163708117,500.0,0.00025,120]
[343972401,1733163708818,16930.55,0.00025,120]
[343972402,1733163709574,500.0,0.00025,120]
[343972403,1733163709904,500.0,0.00025,120]
[343972404,1733163710149,500.0,0.00025,120]
[343972405,1733163710330,591.82,0.00025,120]
[343972406,1733163711154,500.0,0.00025,120]
[343972407,1733163712391,1676.95,0.00025,120]
[343972408,1733163712455,501.72,0.00025,120]
[343972409,1733163712664,26254.46,0.00025,120]
[343972410,1733163712905,5584.83,0.00025,120]
[343972411,1733163713372,1805.79,0.00025,120]
[343972412,1733163714027,500.0,0.00025,120]
[343972413,1733163714154,700.21,0.00025,120]
[343972414,1733163715922,622.4,0.00025,120]
[343972415,1733163716135,500.0,0.00025,120]
[343972416,1733163717197,500.0,0.00025,120]
[343972417,1733163718395,500.0,0.00025,120]
[343972418,1733163718534,765.08,0.00025,120]
[343972419,1733163720147,500.0,0.00025,120]
[343972420,1733163720985,500.0,0.00025,120]
[343972421,1733163721111,12640.95,0.00025,120]
[343972422,1733163721363,22038.18,0.00025,120]
[343972423,1733163721748,500.0,0.00025,120]
[343972424,1733163722116,12213.04,0.00025,120]
[343972425,1733163722714,3778.4,0.00025,120]
[343972426,1733163723159,5951.59,0.00025,120]
[343972427,1733163723676,2898.44,0.00025,120]
[343972428,1733163723758,1832.77,0.00025,120]
[343972429,1733163723971,711.8,0.00025,120]
[343972430,1733163724045,6683.59,0.00025,120]
[343972431,1733163724784,500.0,0.00025,120]
[343972432,1733163724943,874.69,0.00025,120]
[343972433,1733163725409,529.72,0.00025,120]
[343972434,1733163726389,956.89,0.00025,120]
[343972435,1733163726875,6095.63,0.00025,120]
[343972436,1733163727457,500.0,0.00025,120]
[343972437,1733163729325,500.0,0.00025,120]
[343972438,1733163729998,500.0,0.00025,120]
[343972439,1733163730999,8924.53,0.00025,120]
[343972440,1733163731776,3352.05,0.00025,120]
[343972441,1733163732420,1540.85,0.00025,120]
[343972442,1733163733683,500.0,0.00025,120]
[343972443,1733163733760,6152.71,0.00025,120]
[343972444,1733163733847,500.0,0.00025,120]
[343972445,1733163734752,5354.82,0.00025,120]
[343972446,1733163735523,500.0,0.00025,120]
[343972447,1733163736012,2789.08,0.00025,120]
[343972448,1733163736196,500.0,0.00025,120]
[343972449,1733163736375,500.0,0.00025,120]
[343972450,1733163736868,1183.92,0.00025,120]
[343972451,1733163737092,657.62,0.00025,120]
[343972452,1733163737197,2035.13,0.00025,120]
[343972453,1733163738478,497.87479111,0.00025,120]
[343972454,1733163741178,5778.51,0.00025,120]
[343972455,1733163741523,2702.84,0.00025,120]
[343972456,1733163742400,500.0,0.00025,120]
[343972457,1733163742551,500.0,0.00025,120]
[343972458,1733163743294,2955.34,0.00025,120]
[343972459,1733163743349,6677.95,0.00025,120]
[343972460,1733163743581,814.13,0.00025,120]
[343972461,1733163744448,4037.73,0.00025,120]
[343972462,1733163745438,500.0,0.00025,120]
[343972463,1733163745510,5415.98,0.00025,120]
[343972464,1733163746552,500.0,0.00025,120]
[343972465,1733163746629,4077.04,0.00025,120]
[343972466,1733163746749,1924.46,0.00025,120]
[343972467,1733163749031,500.0,0.00025,120]
[343972468,1733163749179,500.0,0.00025,120]
[343972469,1733163750090,500.0,0.00025,120]
[343972470,1733163750292,500.0,0.00025,120]
[343972471,1733163750468,2325.58,0.00025,120]
[343972472,1733163750553,500.0,0.00025,120]
[343972473,1733163752766,500.0,0.00025,120]
[343972474,1733163752940,4350.5,0.00025,120]
[343972475,1733163753102,8627.92,0.00025,120]
[343972476,1733163753264,1607.76,0.00025,120]
[343972477,1733163753874,500.0,0.00025,120]
[343972478,1733163753993,17679.11,0.00025,120]
[343972479,1733163754702,103338.45288311,0.00025,120]
[343972480,1733163755333,2891.58,0.00025,120]
[343972481,1733163755467,500.0,0.00025,120]
[343972482,1733163755548,781.19,0.00025,120]
[343972483,1733163755917,8083.45,0.00025,120]
[343972484,1733163755974,846.35,0.00025,120]
[343972485,1733163756426,6169.65,0.00025,120]
[343972486,1733163756818,929.36,0.00025,120]
[343972487,1733163757627,765.07,0.00025,120]
[343972488,1733163758060,500.0,0.00025,120]
[343972489,1733163758503,500.0,0.00025,120]
[343972490,1733163759616,500.0,0.00025,120]
[343972491,1733163759715,3066.77,0.00025,120]
[343972492,1733163760584,2445.83,0.00025,120]
[343972493,1733163761433,500.0,0.00025,120]
[343972494,1733163762657,3297.6,0.00025,120]
[343972495,1733163764314,500.0,0.00025,120]
[343972496,1733163764483,1385.64,0.00025,120]
[343972497,1733163764669,6543.83,0.00025,120]
[343972498,1733163768000,2129.21,0.00025,120]
[343972499,1733163768688,500.0,0.00025,120]
[343972500,1733163768876,704.77,0.00025,120]
[343972501,1733163768985,500.0,0.00025,120]
[343972502,1733163770064,880.7,0.00025,120]
[343972503,1733163770198,744.61,0.00025,120]
[343972504,1733163770464,500.0,0.00025,120]
[343972505,1733163770827,1951.01,0.00025,120]
[343972506,1733163771114,500.0,0.00025,120]
[343972507,1733163771740,500.0,0.00025,120]
[343972508,1733163771826,500.0,0.00025,120]
[343972509,1733163772314,977.23,0.00025,120]
[343972510,1733163773856,585.28,0.00025,120]
[343972511,1733163774321,500.0,0.00025,120]
[343972512,1733163774938,516.68655156,0.00025,120]
[343972513,1733163775072,500.0,0.00025,120]
[343972514,1733163776128,500.0,0.00025,120]
[343972515,1733163776731,2817.74,0.00025,120]
[343972516,1733163776790,500.0,0.00025,120]
[343972517,1733163777892,12093.01,0.00025,120]
[343972518,1733163778202,500.0,0.00025,120]
[343972519,1733163778278,500.0,0.00025,120]
[343972520,1733163779046,700.82,0.00025,120]
[343972521,1733163779178,2742.61,0.00025,120]
[343972523,1733163779260,1668.31,0.00025,120]
[343972524,1733163779343,1496.96,0.00025,120]
[343972525,1733163779504,500.0,0.00025,120]
[343972526,1733163779792,1000.0,0.00025,120]
[343972527,1733163780460,500.0,0.00025,120]
[343972528,1733163780535,500.0,0.00025,120]
[343972529,1733163780702,3602.01,0.00025,120]
[343972530,1733163780940,2701.25,0.00025,120]
[343972531,1733163782334,20342.61,0.00025,120]
[343972532,1733163783157,500.0,0.00025,120]
[343972533,1733163783627,500.0,0.00025,120]
[343972534,1733163786607,841.46,0.00025,120]
[343972535,1733163786864,1635.61,0.00025,120]
[343972536,1733163787673,500.0,0.00025,120]
[343972537,1733163787985,500.0,0.00025,120]
[343972538,1733163788905,843.47,0.00025,120]
[343972539,1733163788961,7986.11,0.00025,120]
[343972540,1733163789330,500.0,0.00025,120]
[343972541,1733163789383,500.0,0.00025,120]
[343972542,1733163790308,4438.51,0.00025,120]
[343972543,1733163790809,1404.4,0.00025,120]
[343972544,1733163792718,500.0,0.00025,120]
[343972545,1733163792775,500.0,0.00025,120]
[343972546,1733163792834,3060.42,0.00025,120]
[343972547,1733163794031,500.0,0.00025,120]
[343972548,1733163794779,1089.35,0.00025,120]
[343972549,1733163794976,1066.13,0.00025,120]
[343972550,1733163795916,500.0,0.00025,120]
[343972551,1733163797697,1255.14,0.00025,120]
[343972552,1733163797913,500.0,0.00025,120]
[343972553,1733163799103,753.24,0.00025,120]
[343972554,1733163799670,500.0,0.00025,120]
[343972555,1733163799838,982.9,0.00025,120]
[343972556,1733163799941,1188.05,0.00025,120]
[343972557,1733163800734,2877.76,0.00025,120]
[343972558,1733163801668,500.0,0.00025,120]
[343972559,1733163804079,2807.0,0.00025,120]
[343972560,1733163804483,500.0,0.00025,120]
[343972561,1733163805296,3999.12,0.00025,120]
[343972562,1733163805382,648.39,0.00025,120]
[343972563,1733163806001,968.24,0.00025,120]
[343972564,1733163806364,601.96,0.00025,120]
[343972565,1733163806421,2023.65,0.00025,120]
[343972566,1733163806543,500.0,0.00025,120]
[343972567,1733163807504,9223.37,0.00025,120]
[343972568,1733163808679,3466.36,0.00025,120]
[343972569,1733163809348,500.0,0.00025,120]
[343972570,1733163809453,500.0,0.00025,120]
[343972571,1733163809535,2389.18,0.00025,120]
[343972572,1733163809877,342.81,6.813e-05,2]
[343972573,1733163810544,1799.87,0.00025,120]
[343972574,1733163810943,500.0,0.00025,120]
[343972575,1733163811002,999.22,0.00025,120]
[343972576,1733163811917,1473.9,0.00025,120]
[343972577,1733163813067,500.0,0.00025,120]
[343972578,1733163813606,3725.02,0.00025,120]
[343972579,1733163815404,500.0,0.00025,120]
[343972580,1733163816055,500.0,0.00025,120]
[343972581,1733163816443,2088.36,0.00025,120]
[343972582,1733163816753,4546.29,0.00025,120]
[343972583,1733163818054,1581.19,0.00025,120]
[343972584,1733163818109,3472.2,0.00025,120]
[343972585,1733163818190,500.0,0.00025,120]
[343972586,1733163819803,1471.04,0.00025,120]
[343972587,1733163820544,500.0,0.00025,120]
[343972588,1733163820726,500.0,0.00025,120]
[343972589,1733163820974,2807.27,0.00025,120]
[343972590,1733163821329,500.0,0.00025,120]
[343972591,1733163822013,500.0,0.00025,120]
[343972592,1733163822833,2962.71,0.00025,120]
[343972593,1733163823416,500.0,0.00025,120]
[343972594,1733163823804,500.0,0.00025,120]
[343972595,1733163824387,6062.06,0.00025,120]
[343972596,1733163824605,500.0,0.00025,120]
[343972597,1733163825114,500.0,0.00025,120]
[343972598,1733163825178,500.0,0.00025,120]
[343972599,1733163825242,500.0,0.00025,120]
[343972600,1733163825300,4093.61,0.00025,120]
[343972601,1733163826447,1026.22,0.00025,120]
[343972602,1733163826942,80.03347754,0.00025,120]
[343972603,1733163894090,166.67,7.016e-05,2]
[343972604,1733163908436,150.0,6.929e-05,2]
[343972606,1733163912995,150.0,6.929e-05,2]
[343972607,1733163913299,150.0,7.025e-05,2]
[343972608,1733163913664,150.0,7.121e-05,2]
[343972612,1733164033837,200.0,7e-05,2]
[343972613,1733164035446,500.0,7.1e-05,2]
[343972614,1733164038242,13355.56,6.723e-05,2]
[343972621,1733164104689,324.93,6.63e-05,2]
[343972623,1733164119102,250.0,6.669e-05,2]
[343972655,1733164232048,-785.62130943,7.2e-05,2]
[343972656,1733164232059,-14.37869057,7.2e-05,2]
[343972657,1733164232068,-150.0,7.217e-05,2]
[343972658,1733164232077,-106.17130943,7.3e-05,2]
[343972659,1733164232087,-993.82869057,7.3e-05,2]
[343972660,1733164232096,-150.0,7.314e-05,2]
[343972661,1733164232106,-1400.0,7.4e-05,2]
[343972662,1733164232115,-150.0,7.41e-05,2]
[343972663,1733164232123,-200.0,7.5e-05,2]
[343972664,1733164232132,-150.0,7.506e-05,2]
[343972665,1733164232144,-464.86,7.51e-05,2]
[343972666,1733164232153,-1558.07,7.51e-05,2]
[343972667,1733164232163,-286.1911454,7.545e-05,2]
[343972668,1733164232172,-716.85,7.6e-05,2]
[343972669,1733164232181,-157.55502753,7.6e-05,2]
[343972670,1733164232208,-277.35497247,7.6e-05,2]
[343972671,1733164232218,-117.16090044,7.6e-05,2]
[343972672,1733164232230,-857.41879956,7.6e-05,2]
[343972673,1733164232239,-186.89120044,7.6e-05,2]
[343972674,1733164232358,-106.58639956,7.6e-05,2]
[343972675,1733164232368,-2500.0,7.6e-05,2]
[343972676,1733164232377,-200.0,7.6e-05,2]
[343972678,1733164232386,-167.948811,7.6e-05,2]
[343972680,1733164232396,-150.0,7.602e-05,2]
[343972682,1733164232406,-150.0,7.612e-05,2]
[343972683,1733164232415,-3492.94518944,7.613e-05,2]
[343972684,1733164232467,-1614.66789625,7.613e-05,2]
[343972696,1733164237980,-9197.32292782,7.613e-05,2]
[343972697,1733164237991,-434.40671301,7.613e-05,2]
[343972698,1733164238004,-250.5,7.613e-05,2]
[343972699,1733164238105,-1846.15727348,7.613e-05,2]
[343972700,1733164238116,-12437.058805,7.63e-05,2]
[343972701,1733164238125,-2167.03794672,7.63e-05,2]
[343972702,1733164238135,-1000.0,7.661e-05,2]
[343972703,1733164238145,-1000.0,7.661e-05,2]
[343972704,1733164238154,-1000.0,7.661e-05,2]
[343972705,1733164238164,-1000.0,7.661e-05,2]
[343972706,1733164238174,-1000.0,7.661e-05,2]
[343972707,1733164238183,-1000.0,7.661e-05,2]
[343972708,1733164238193,-1000.0,7.661e-05,2]
[343972709,1733164238202,-1000.0,7.661e-05,2]
[343972710,1733164238215,-1000.0,7.661e-05,2]
[343972711,1733164238224,-1000.0,7.661e-05,2]
[343972712,1733164238234,-1000.0,7.661e-05,2]
[343972713,1733164238243,-1000.0,7.661e-05,2]
[343972714,1733164238253,-1000.0,7.661e-05,2]
[343972715,1733164238263,-1000.0,7.661e-05,2]
[343972716,1733164238277,-1000.0,7.661e-05,2]
[343972717,1733164238287,-1000.0,7.661e-05,2]
[343972718,1733164238297,-957.8089,7.661e-05,2]
[343972719,1733164238307,-342.81,7.665e-05,2]
[343972720,1733164238318,-159.855648,7.673e-05,2]
[343972721,1733164238327,-500.0,7.673e-05,2]
[343972722,1733164238337,-199.75968,7.673e-05,2]
[343972723,1733164238347,-175.77456016,7.689e-05,2]
[343972724,1733164238357,-341099.23862611,7.69e-05,2]
[343972725,1733164238369,-2481.71778002,7.69e-05,2]
[343972726,1733164238381,-648689.2639665,7.69e-05,2]